fUSD/lending_fUSD_20260702
["ID","MTS","AMOUNT","RATE_DAILY","PERIOD"]
[426896584,1782993039000,-417.27320241,0.0002618,2]
[426896593,1782993039000,-165.75,0.00026686,2]
[426896586,1782993039000,-5000.0,0.0002628,2]
[426896599,1782993039000,-1942.31722857,0.000267,2]
[426896607,1782993039000,-151.0,0.00026797,7]
[426896603,1782993039000,-189.18811414,0.00026785,2]
[426896616,1782993039000,-256.743556,0.000268,2]
[426896621,1782993039000,-256.743556,0.000268,2]
[426896611,1782993039000,-2883372.10249326,0.000268,2]
[426896610,1782993039000,-151.0,0.00026797,7]
[426896620,1782993039000,-256.743556,0.000268,2]
[426896613,1782993039000,-295.3,0.000268,7]
[426896623,1782993039000,-151.0,0.000268,2]
[426896660,1782993039000,-500.0,0.000275,7]
[426896693,1782993039000,-362.39,0.000284,7]
[426896656,1782993039000,-467.13,0.00027455,2]
[426896687,1782993039000,-2435.98260583,0.000282,2]
[426896685,1782993039000,-2225.0,0.0002802,2]
[426896690,1782993039000,-5411.15,0.000283,7]
[426896684,1782993039000,-171.0,0.00028,2]
[426896691,1782993039000,-799.78972982,0.00028384,2]
[426896692,1782993039000,-196.9,0.000284,7]
[426896699,1782993039000,-10006.1856191,0.000286,2]
[426896696,1782993039000,-734.2676904,0.000285,2]
[426896704,1782993039000,-157.35,0.0002863,30]
[426896701,1782993039000,-15730.62276641,0.000286,7]
[426896702,1782993039000,-154.8,0.0002863,30]
[426896703,1782993039000,-151.93,0.0002863,30]
[426896700,1782993039000,-208.32559247,0.000286,2]
[426896697,1782993039000,-2435.98260583,0.000285,2]
[426896695,1782993039000,-1030.52,0.00028499,7]
[426896698,1782993039000,-224.00733174,0.00028555,2]
[426896705,1782993039000,-174.62,0.00028631,30]
[426896710,1782993039000,-174.72,0.00028666,2]
[426896706,1782993039000,-165.26,0.00028631,30]
[426896707,1782993039000,-1348.22543929,0.00028646,15]
[426896708,1782993039000,-795.61595576,0.00028661,2]
[426896709,1782993039000,-3486.89799801,0.00028661,2]
[426896651,1782993039000,-5411.15,0.000274,7]
[426896712,1782993039000,-271.79299328,0.00028749,2]
[426896713,1782993039000,-2435.98260583,0.000288,2]
[426896694,1782993039000,-1000.0,0.00028499,2]
[426896689,1782993039000,-208.32559247,0.000283,2]
[426896711,1782993039000,-176.08,0.0002867,2]
[426896686,1782993039000,-734.2676904,0.000282,2]
[426896688,1782993039000,-10006.1856191,0.000283,2]
[426896658,1782993039000,-164.65,0.00027459,2]
[426896653,1782993039000,-500.0,0.00027454,7]
[426896661,1782993039000,-208.32559247,0.000275,2]
[426896662,1782993039000,-160.0,0.00027513,2]
[426896663,1782993039000,-151.60663317,0.00027655,2]
[426896664,1782993039000,-734.2676904,0.000277,2]
[426896665,1782993039000,-2435.98260583,0.000277,2]
[426896666,1782993039000,-10006.1856191,0.000277,2]
[426896670,1782993039000,-166.03,0.00027731,2]
[426896667,1782993039000,-208.32559247,0.000277,2]
[426896669,1782993039000,-462.83,0.00027712,2]
[426896668,1782993039000,-217.12966715,0.0002771,2]
[426896657,1782993039000,-7908.46057476,0.00027456,2]
[426896675,1782993039000,-295.3,0.000279,7]
[426896672,1782993039000,-678.76,0.00027876,2]
[426896678,1782993039000,-218.0,0.00028,2]
[426896681,1782993039000,-208.32559247,0.00028,2]
[426896680,1782993039000,-173.0,0.00028,2]
[426896677,1782993039000,-10006.1856191,0.00028,2]
[426896683,1782993039000,-292.0,0.00028,2]
[426896676,1782993039000,-605.8,0.00027971,7]
[426896673,1782993039000,-734.2676904,0.000279,2]
[426896682,1782993039000,-6252.67,0.00028,2]
[426896671,1782993039000,-164.7,0.00027809,2]
[426896679,1782993039000,-252.0,0.00028,2]
[426896674,1782993039000,-2435.98260583,0.000279,2]
[426896742,1782993040000,-174.72,0.00029232,7]
[426896749,1782993040000,-189.16081701,0.00029518,2]
[426896741,1782993040000,-176.09,0.00029232,7]
[426896745,1782993040000,-1324.48,0.00029393,2]
[426896750,1782993040000,-150.0,0.00029534,2]
[426896747,1782993040000,-10006.1856191,0.000294,2]
[426896751,1782993040000,-518.5,0.00029557,2]
[426896746,1782993040000,-2435.98260583,0.000294,2]
[426896748,1782993040000,-248.5629331,0.00029518,2]
[426896744,1782993040000,-174.62,0.00029383,2]
[426896743,1782993040000,-479.26,0.00029315,2]
[426896759,1782993040000,-10006.1856191,0.000297,2]
[426896754,1782993040000,-164.65,0.00029571,2]
[426896761,1782993040000,-479.26,0.00029726,2]
[426896760,1782993040000,-250.0,0.00029701,7]
[426896763,1782993040000,-298.5,0.00029863,30]
[426896755,1782993040000,-154.8,0.00029634,2]
[426896753,1782993040000,-2492.83083568,0.00029557,2]
[426896762,1782993040000,-2492.83083568,0.00029831,2]
[426896756,1782993040000,-569.45,0.00029649,7]
[426896757,1782993040000,-2435.98260583,0.000297,2]
[426896739,1782993040000,-362.39,0.000292,7]
[426896764,1782993040000,-33361.7046,0.000299,2]
[426896752,1782993040000,-1500.0,0.00029557,2]
[426896736,1782993040000,-157.35,0.00029132,7]
[426896721,1782993040000,-188.0,0.00029,2]
[426896737,1782993040000,-165.26,0.00029132,7]
[426896765,1782993040000,-2000.0,0.000299,2]
[426896717,1782993040000,-41098.36600924,0.00029,2]
[426896716,1782993040000,-73125.12741403,0.0002897,6]
[426896714,1782993040000,-587.62,0.0002881,7]
[426896715,1782993040000,-10006.1856191,0.000289,2]
[426896719,1782993040000,-230.0,0.00029,2]
[426896718,1782993040000,-9620.44272952,0.00029,2]
[426896726,1782993040000,-1256.62575978,0.00029,7]
[426896724,1782993040000,-305.0,0.00029,2]
[426896725,1782993040000,-290309.87750576,0.00029,5]
[426896720,1782993040000,-271.0,0.00029,2]
[426896727,1782993040000,-174.62,0.00029007,7]
[426896722,1782993040000,-19841.21859133,0.00029,2]
[426896728,1782993040000,-500.0,0.00029099,7]
[426896723,1782993040000,-295.3,0.00029,7]
[426896729,1782993040000,-2435.98260583,0.000291,2]
[426896740,1782993040000,-170.24,0.00029232,7]
[426896730,1782993040000,-10006.1856191,0.000291,2]
[426896731,1782993040000,-5411.15,0.000291,7]
[426896735,1782993040000,-151.93,0.00029132,7]
[426896733,1782993040000,-152.297123,0.0002913,2]
[426896732,1782993040000,-500.0,0.0002913,2]
[426896738,1782993040000,-196.9,0.000292,7]
[426896734,1782993040000,-154.8,0.00029132,7]
[426896766,1782993040000,-295.3,0.000299,7]
[426896793,1782993040000,-67061.0414906,0.0003009,2]
[426896770,1782993040000,-1030.52,0.00029999,7]
[426896802,1782993040000,-2027.194656,0.00030137,7]
[426896796,1782993040000,-164.7,0.00030127,2]
[426896798,1782993040000,-151.92,0.00030136,30]
[426896795,1782993040000,-732.45374336,0.0003011,2]
[426896797,1782993040000,-154.83,0.00030136,30]
[426896803,1782993040000,-2027.194656,0.00030137,7]
[426896801,1782993040000,-2027.194656,0.00030137,7]
[426896804,1782993040000,-1993.7726,0.00030137,7]
[426896807,1782993040000,-1993.7726,0.00030137,7]
[426896805,1782993040000,-1993.7726,0.00030137,7]
[426896806,1782993040000,-2027.194656,0.00030137,7]
[426896814,1782993040000,-151.0,0.00030137,7]
[426896810,1782993040000,-1993.7726,0.00030137,7]
[426896809,1782993040000,-2027.194656,0.00030137,7]
[426896813,1782993040000,-1993.7726,0.00030137,7]
[426896812,1782993040000,-2027.194656,0.00030137,7]
[426896815,1782993040000,-2027.194656,0.00030137,7]
[426896811,1782993040000,-1993.7726,0.00030137,7]
[426896817,1782993040000,-1993.7726,0.00030137,7]
[426896816,1782993040000,-2027.194656,0.00030137,7]
[426896819,1782993040000,-2027.194656,0.00030137,7]
[426896818,1782993040000,-1993.7726,0.00030137,7]
[426896771,1782993040000,-500.0,0.00029999,5]
[426896800,1782993040000,-151.0,0.00030137,7]
[426896799,1782993040000,-151.0,0.00030137,7]
[426896808,1782993040000,-2027.194656,0.00030137,7]
[426896794,1782993040000,-2492.83083568,0.00030105,2]
[426896768,1782993040000,-1000.0,0.00029999,2]
[426896820,1782993040000,-1993.7726,0.00030137,7]
[426896774,1782993040000,-2435.98260583,0.0003,2]
[426896772,1782993040000,-500.0,0.00029999,7]
[426896767,1782993040000,-159.18385844,0.00029997,7]
[426896773,1782993040000,-288659.88187509,0.0003,2]
[426896769,1782993040000,-500.0,0.00029999,7]
[426896775,1782993040000,-10006.1856191,0.0003,2]
[426896776,1782993040000,-362.39,0.0003,7]
[426896781,1782993040000,-696.39431812,0.0003,15]
[426896778,1782993040000,-10834.54784323,0.0003,3]
[426896785,1782993040000,-223070.05158656,0.0003009,2]
[426896777,1782993040000,-196357.40797984,0.0003,30]
[426896784,1782993040000,-166.03,0.00030019,2]
[426896791,1782993040000,-270.735822,0.0003,7]
[426896783,1782993040000,-270.735822,0.0003,7]
[426896790,1782993040000,-502.88675971,0.0003009,2]
[426896789,1782993040000,-1358.13555342,0.0003009,2]
[426896786,1782993040000,-1292.529697,0.0003009,2]
[426896788,1782993040000,-6618.55090001,0.0003009,2]
[426896792,1782993040000,-4049.85689516,0.0003009,2]
[426896780,1782993040000,-1212.44,0.0003,10]
[426896779,1782993040000,-5411.15,0.0003,7]
[426896782,1782993040000,-153.357836,0.0003,7]
[426896787,1782993040000,-452.91970207,0.0003009,2]
[426896862,1782993041000,-151.0,0.00030137,7]
[426896845,1782993041000,-151.0,0.00030137,7]
[426896853,1782993041000,-151.0,0.00030137,7]
[426896864,1782993041000,-151.0,0.00030137,7]
[426896854,1782993041000,-151.0,0.00030137,7]
[426896856,1782993041000,-151.0,0.00030137,7]
[426896858,1782993041000,-151.0,0.00030137,7]
[426896861,1782993041000,-151.0,0.00030137,7]
[426896851,1782993041000,-151.0,0.00030137,7]
[426896860,1782993041000,-151.0,0.00030137,7]
[426896863,1782993041000,-2526.576462,0.00030137,7]
[426896872,1782993041000,-7659.75970206,0.000302,2]
[426896865,1782993041000,-2526.576462,0.00030137,7]
[426896868,1782993041000,-151.0,0.00030137,7]
[426896869,1782993041000,-1000.0,0.00030137,120]
[426896873,1782993041000,-151.60663317,0.00030344,2]
[426896876,1782993041000,-175.51104744,0.00030411,60]
[426896875,1782993041000,-2000.0,0.00030387,20]
[426896866,1782993041000,-151.0,0.00030137,7]
[426896874,1782993041000,-2492.83083568,0.00030379,2]
[426896871,1782993041000,-200.0,0.00030137,2]
[426896870,1782993041000,-479.25499541,0.00030137,2]
[426896852,1782993041000,-151.0,0.00030137,7]
[426896859,1782993041000,-151.0,0.00030137,7]
[426896846,1782993041000,-151.0,0.00030137,7]
[426896822,1782993041000,-2027.194656,0.00030137,7]
[426896840,1782993041000,-151.0,0.00030137,7]
[426896889,1782993041000,-317.46698307,0.00030741,2]
[426896821,1782993041000,-2027.194656,0.00030137,7]
[426896823,1782993041000,-1993.7726,0.00030137,7]
[426896825,1782993041000,-1993.7726,0.00030137,7]
[426896824,1782993041000,-1993.7726,0.00030137,7]
[426896826,1782993041000,-151.0,0.00030137,7]
[426896827,1782993041000,-151.0,0.00030137,7]
[426896829,1782993041000,-151.0,0.00030137,7]
[426896828,1782993041000,-151.0,0.00030137,7]
[426896832,1782993041000,-151.0,0.00030137,7]
[426896835,1782993041000,-151.0,0.00030137,7]
[426896843,1782993041000,-151.0,0.00030137,7]
[426896833,1782993041000,-155.86568,0.00030137,7]
[426896831,1782993041000,-151.0,0.00030137,7]
[426896836,1782993041000,-151.0,0.00030137,7]
[426896834,1782993041000,-153.13731,0.00030137,7]
[426896838,1782993041000,-151.0,0.00030137,7]
[426896837,1782993041000,-151.0,0.00030137,7]
[426896839,1782993041000,-151.0,0.00030137,7]
[426896848,1782993041000,-151.0,0.00030137,7]
[426896844,1782993041000,-151.0,0.00030137,7]
[426896841,1782993041000,-151.0,0.00030137,7]
[426896850,1782993041000,-292.953749,0.00030137,7]
[426896842,1782993041000,-151.0,0.00030137,7]
[426896830,1782993041000,-196.2701,0.00030137,7]
[426896888,1782993041000,-601.58,0.0003074,2]
[426896867,1782993041000,-151.0,0.00030137,7]
[426896877,1782993041000,-2000.0,0.00030428,26]
[426896878,1782993041000,-200.0,0.00030438,2]
[426896913,1782993041000,-4025.8149452,0.00031291,2]
[426896911,1782993041000,-2492.83083568,0.00031201,2]
[426896908,1782993041000,-1199.67966199,0.00031123,30]
[426896910,1782993041000,-3447.39,0.000312,2]
[426896909,1782993041000,-190.81,0.00031166,2]
[426896912,1782993041000,-1199.67966199,0.00031233,30]
[426896917,1782993041000,-1231.0,0.00031298,2]
[426896921,1782993041000,-150.0,0.00031298,2]
[426896918,1782993041000,-1362.0,0.00031298,2]
[426896919,1782993041000,-150.0,0.00031298,2]
[426896914,1782993041000,-3566.0,0.00031298,2]
[426896920,1782993041000,-152.0,0.00031298,2]
[426896927,1782993041000,-200.0,0.00031361,2]
[426896925,1782993041000,-3701.806,0.00031298,2]
[426896924,1782993041000,-150.0,0.00031298,2]
[426896922,1782993041000,-200.0,0.00031298,2]
[426896923,1782993041000,-216.0,0.00031298,2]
[426896926,1782993041000,-158.04,0.00031355,14]
[426896930,1782993041000,-2492.83083568,0.00031475,2]
[426896929,1782993041000,-179.2683589,0.000314,2]
[426896932,1782993041000,-2510.55783271,0.00031487,2]
[426896933,1782993041000,-2000.0,0.00031499,6]
[426896931,1782993041000,-1199.67966199,0.00031479,30]
[426896928,1782993041000,-1199.67966199,0.0003137,30]
[426896906,1782993041000,-200.0,0.0003105,2]
[426896907,1782993041000,-9000.0,0.00031102,5]
[426896916,1782993041000,-1278.0,0.00031298,2]
[426896879,1782993041000,-3689.788,0.00030452,26]
[426896881,1782993041000,-1199.67966199,0.00030521,30]
[426896883,1782993041000,-1030.52,0.00030566,7]
[426896880,1782993041000,-167.984,0.00030452,26]
[426896882,1782993041000,-1000.0,0.00030566,2]
[426896885,1782993041000,-2004.8069,0.00030646,2]
[426896887,1782993041000,-2492.83083568,0.00030653,2]
[426896886,1782993041000,-10019.6333,0.00030646,2]
[426896884,1782993041000,-1199.67966199,0.0003063,30]
[426896904,1782993041000,-350.0,0.00031034,2]
[426896895,1782993041000,-2492.83083568,0.00030927,2]
[426896896,1782993041000,-2000.0,0.00030945,60]
[426896890,1782993041000,-241.59802566,0.00030741,2]
[426896892,1782993041000,-1199.67966199,0.00030767,30]
[426896905,1782993041000,-1503.0,0.00031036,2]
[426896915,1782993041000,-223.0,0.00031298,2]
[426896894,1782993041000,-5411.15,0.000309,7]
[426896903,1782993041000,-1199.67966199,0.00031014,30]
[426896902,1782993041000,-150.0,0.00031011,2]
[426896901,1782993041000,-1000.0,0.00031,7]
[426896897,1782993041000,-2000.0,0.00030997,16]
[426896900,1782993041000,-202.539999,0.00031,11]
[426896898,1782993041000,-2000.0,0.00030998,15]
[426896891,1782993041000,-200.0,0.00030743,2]
[426896893,1782993041000,-1199.67966199,0.00030877,30]
[426896899,1782993041000,-2000.0,0.00030998,28]
[426896941,1782993042000,-200.0,0.00031628,2]
[426896940,1782993042000,-1199.67966199,0.00031616,30]
[426896934,1782993042000,-188.80783087,0.00031507,15]
[426896935,1782993042000,-427.07,0.00031557,3]
[426896936,1782993042000,-500.0,0.0003157,2]
[426896939,1782993042000,-302.042,0.00031614,2]
[426896937,1782993042000,-470.0,0.00031586,5]
[426896938,1782993042000,-380.0,0.00031586,5]
[426896947,1782993042000,-44864.42754778,0.0003168,2]
[426896944,1782993042000,-201.0,0.00031643,2]
[426896943,1782993042000,-249.75460337,0.00031632,2]
[426896945,1782993042000,-151.0,0.00031646,2]
[426896946,1782993042000,-500.0,0.00031679,7]
[426896948,1782993042000,-925.75751828,0.00025993,7]
[426896950,1782993042000,-165.82533481,0.00026773,7]
[426896949,1782993042000,-90.91248172,0.00025993,7]
[426896942,1782993042000,-328.18496849,0.00031632,2]
[426896965,1782993044000,-727.5,0.00025625,2]
[426896964,1782993044000,-172.5,0.00024658,2]
[426896966,1782993044000,-911.67393732,0.00025625,2]
[426896968,1782993044000,-374.70888036,0.00025625,2]
[426896967,1782993044000,-581.35287267,0.00025625,2]
[426896978,1782993046000,-216.69616408,0.00027399,2]
[426896973,1782993046000,-534.55817162,0.00026773,7]
[426896972,1782993046000,-1787.63430965,0.00025625,2]
[426896975,1782993046000,-172.5,0.00027397,7]
[426896977,1782993046000,-270.735822,0.00027397,2]
[426896976,1782993046000,-270.735822,0.00027397,2]
[426896974,1782993046000,-285.78649357,0.00026773,7]
[426896980,1782993046000,-955.68,0.00027553,7]
[426896983,1782993046000,-160.59,0.00028631,30]
[426896982,1782993046000,-154.64,0.0002863,30]
[426896979,1782993046000,-160.0,0.00027513,2]
[426896981,1782993046000,-154.8,0.0002863,30]
[426897006,1782993047000,-154.90621644,0.00030137,7]
[426897003,1782993047000,-151.0,0.00030137,7]
[426897005,1782993047000,-2526.576462,0.00030137,7]
[426897020,1782993047000,-2492.83083568,0.00031749,2]
[426897007,1782993047000,-2526.576462,0.00030137,7]
[426897009,1782993047000,-151.0,0.00030137,7]
[426897011,1782993047000,-12742.79394472,0.0003168,2]
[426897008,1782993047000,-2526.576462,0.00030137,7]
[426897013,1782993047000,-258.890702,0.0003168,7]
[426897015,1782993047000,-208.7,0.000317,30]
[426897017,1782993047000,-5411.15,0.000317,7]
[426897018,1782993047000,-369.68,0.00031714,120]
[426897016,1782993047000,-484.21,0.000317,30]
[426897014,1782993047000,-164.65,0.00031684,2]
[426897019,1782993047000,-1199.67966199,0.00031726,30]
[426897022,1782993047000,-350.0,0.00031773,4]
[426897021,1782993047000,-500.0,0.0003177,2]
[426897025,1782993047000,-2510.55783271,0.00031843,2]
[426897012,1782993047000,-221.906316,0.0003168,7]
[426896991,1782993047000,-160.59,0.00029634,2]
[426897002,1782993047000,-2526.576462,0.00030137,7]
[426896984,1782993047000,-172.5,0.00028663,2]
[426896989,1782993047000,-154.8,0.00029634,2]
[426896990,1782993047000,-154.64,0.00029634,2]
[426896985,1782993047000,-160.59,0.00029132,7]
[426896986,1782993047000,-154.8,0.00029132,7]
[426896987,1782993047000,-154.64,0.00029132,7]
[426896988,1782993047000,-172.51,0.00029232,7]
[426896992,1782993047000,-1653.46,0.0002999,10]
[426896993,1782993047000,-270.735822,0.0003,7]
[426896996,1782993047000,-154.64,0.00030136,30]
[426896995,1782993047000,-154.83,0.00030136,30]
[426896994,1782993047000,-270.735822,0.0003,7]
[426896999,1782993047000,-151.0,0.00030137,7]
[426896998,1782993047000,-172.52,0.00030136,30]
[426896997,1782993047000,-160.61,0.00030136,30]
[426897000,1782993047000,-2526.576462,0.00030137,7]
[426897001,1782993047000,-151.0,0.00030137,7]
[426897004,1782993047000,-2526.576462,0.00030137,7]
[426897023,1782993047000,-690.01,0.00031781,7]
[426897010,1782993047000,-151.0,0.00030137,7]
[426897026,1782993047000,-1199.67966199,0.00031863,30]
[426897045,1782993047000,-378.34323438,0.00031971,2]
[426897043,1782993047000,-500.0,0.0003197,2]
[426897053,1782993047000,-2000.0,0.00031999,10]
[426897054,1782993047000,-2000.0,0.00031999,30]
[426897024,1782993047000,-295.3,0.000318,7]
[426897060,1782993047000,-2000.0,0.00031999,32]
[426897064,1782993047000,-150.0,0.00032,2]
[426897056,1782993047000,-2000.0,0.00031999,25]
[426897062,1782993047000,-281.35702406,0.00032,15]
[426897068,1782993047000,-571085.54611687,0.00032,30]
[426897070,1782993047000,-3934.69694374,0.00032,30]
[426897073,1782993047000,-2384.79621661,0.00032,30]
[426897066,1782993047000,-200.0,0.00032,12]
[426897058,1782993047000,-2000.0,0.00031999,8]
[426897078,1782993047000,-1865.92,0.00031298,2]
[426897075,1782993047000,-933.17288362,0.00032,30]
[426897080,1782993047000,-999.99881206,0.00031298,2]
[426897046,1782993047000,-412.0,0.00031975,2]
[426897047,1782993047000,-200.93528869,0.00031976,2]
[426897055,1782993047000,-2000.0,0.00031999,120]
[426897044,1782993047000,-1100.0,0.0003197,2]
[426897032,1782993047000,-310.0,0.000319,2]
[426897028,1782993047000,-2000.0,0.00031899,11]
[426897049,1782993047000,-224.0,0.00031978,2]
[426897029,1782993047000,-799.78972982,0.000319,2]
[426897035,1782993047000,-804.10256,0.0003191,25]
[426897034,1782993047000,-804.10255,0.0003191,25]
[426897027,1782993047000,-1798.0,0.00031897,2]
[426897033,1782993047000,-180.86328756,0.000319,2]
[426897030,1782993047000,-300.0,0.000319,11]
[426897031,1782993047000,-317.0,0.000319,2]
[426897038,1782993047000,-391.0,0.00031946,2]
[426897037,1782993047000,-804.10256,0.0003191,25]
[426897040,1782993047000,-391.0,0.0003196,2]
[426897041,1782993047000,-391.0,0.0003197,2]
[426897042,1782993047000,-500.0,0.0003197,2]
[426897052,1782993047000,-382.0,0.00031996,2]
[426897039,1782993047000,-2000.0,0.00031957,14]
[426897051,1782993047000,-2000.0,0.0003198,4]
[426897036,1782993047000,-804.10255,0.0003191,25]
[426897114,1782993066000,157.45015448,0.0002827,120]
[426897115,1782993068000,150.0,7.945e-05,2]
[426897116,1782993074000,500.0,0.00027454,120]
[426897117,1782993074000,500.0,0.00029999,120]
[426897119,1782993086000,500.0,0.00029999,120]
[426897118,1782993086000,500.0,0.00027454,120]
[426897121,1782993095000,500.0,0.00029999,120]
[426897120,1782993095000,500.0,0.00027454,120]
[426897125,1782993107000,-284.0,0.00014999,2]
[426897124,1782993107000,-500.0,0.00014999,2]
[426897123,1782993107000,-500.0,0.00014999,2]
[426897122,1782993107000,-500.0,0.00014999,2]
[426897130,1782993148000,-66.55420278,0.00014999,2]
[426897131,1782993148000,-211.94119524,0.00014999,2]
[426897134,1782993148000,-500.0,0.00014999,2]
[426897133,1782993148000,-500.0,0.00014999,2]
[426897132,1782993148000,-500.0,0.00014999,2]
[426897135,1782993148000,-48.50460198,0.00014999,2]
[426897137,1782993165000,500.0,0.00029999,120]
[426897136,1782993165000,500.0,0.00027454,120]
[426897138,1782993277000,150.0,0.00016004,2]
[426897141,1782993291000,500.0,0.00029999,120]
[426897140,1782993291000,500.0,0.00029999,120]
[426897139,1782993291000,500.0,0.00027454,120]
[426897143,1782993309000,-150.0,0.00017169,2]
[426897145,1782993309000,-150.0,0.00017509,2]
[426897142,1782993309000,-250.0,0.00016499,2]
[426897144,1782993309000,-150.0,0.00017339,2]
[426897147,1782993309000,-150.0,0.00017679,2]
[426897148,1782993309000,-150.0,0.00018424,2]
[426897149,1782993309000,500.0,0.00027454,120]
[426897150,1782993309000,563.94,0.00029999,120]
[426897146,1782993309000,-739.23483311,0.00017679,2]
[426897151,1782993316000,-495.76516689,0.00019082,2]
[426897153,1782993349000,43.974,0.00014999,2]
[426897154,1782993367000,-402.595,0.00014999,2]
[426897156,1782993416000,500.0,0.00027454,120]
[426897157,1782993432000,433.99,0.00030136,120]
[426897158,1782993436000,240.34397431,0.00013999,2]
[426897159,1782993436000,9.65602569,0.00013999,2]
[426897160,1782993447000,500.0,0.00027454,120]
[426897161,1782993449000,-53.431,0.00014999,2]
[426897162,1782993449000,-440.705,0.00014999,2]
[426897163,1782993472000,-59.295,0.00014999,2]
[426897164,1782993472000,-250.0,0.00015749,2]
[426897165,1782993485000,355.485,0.00014999,2]
[426897166,1782993505000,-218.386,0.00014999,2]
[426897172,1782993525000,-54.431,0.00014999,2]
[426897171,1782993525000,-1030.52,0.00014999,2]
[426897168,1782993525000,-1030.52,0.00014999,2]
[426897169,1782993525000,-1030.52,0.00014999,2]
[426897170,1782993525000,-1030.52,0.00014999,2]
[426897167,1782993525000,-456.649,0.00014999,2]
[426897174,1782993560000,-561.901,0.00014999,2]
[426897173,1782993560000,-976.089,0.00014999,2]
[426897181,1782993769000,297.01,0.00028069,120]
[426897190,1782993770000,-151.733033,0.00014999,2]
[426897189,1782993770000,-500.0,0.00014999,2]
[426897187,1782993770000,-500.0,0.00014999,2]
[426897188,1782993770000,-500.0,0.00014999,2]
[426897186,1782993770000,-500.0,0.00014999,2]
[426897185,1782993770000,-500.0,0.00014999,2]
[426897184,1782993770000,-500.0,0.00014999,2]
[426897183,1782993770000,-468.619,0.00014999,2]
[426897182,1782993770000,-861.2220011,0.00014899,2]
[426897191,1782993770000,171.28812351,0.00014899,2]
[426897192,1782993778000,-150.0,0.00015749,2]
[426897194,1782993778000,-250.0,0.00016499,2]
[426897195,1782993778000,-153.13784239,0.00016499,2]
[426897193,1782993778000,-500.0,0.0001621,2]
[426897196,1782993794000,50000.0,0.00030137,120]
[426897197,1782993823000,50000.0,0.00030137,120]
[426897241,1782994231000,-1852.42,0.00018426,2]
[426897234,1782994231000,-221.9076822,0.00017787,2]
[426897237,1782994231000,-300.57,0.00018019,2]
[426897231,1782994231000,-863.85442547,0.00017554,2]
[426897242,1782994231000,-150.0,0.00018446,2]
[426897232,1782994231000,-173.53,0.00017609,2]
[426897230,1782994231000,-363.02851249,0.00017215,2]
[426897224,1782994231000,-297.0,0.000165,2]
[426897229,1782994231000,-550.0,0.00016993,2]
[426897226,1782994231000,-332.89168332,0.00016683,2]
[426897228,1782994231000,-517.98661097,0.000169,2]
[426897238,1782994231000,-935.0,0.00018098,2]
[426897225,1782994231000,-346.86215761,0.00016683,2]
[426897223,1782994231000,-150.0,0.00016341,2]
[426897222,1782994231000,-150.0,0.00016182,2]
[426897220,1782994231000,-8216.4881086,0.00015966,2]
[426897219,1782994231000,-8187.0800131,0.00015966,2]
[426897217,1782994231000,-363.02851251,0.00015866,2]
[426897218,1782994231000,-20192.289539,0.00015886,2]
[426897216,1782994231000,-150.0,0.00015516,2]
[426897215,1782994231000,-284.26298321,0.00015166,2]
[426897227,1782994231000,-250.0,0.00016683,2]
[426897235,1782994231000,-181.32431753,0.00017787,2]
[426897221,1782994231000,-150.0,0.00016024,2]
[426897233,1782994231000,-839.7,0.000177,2]